[Event "Early-Titled-Tuesday-Blitz-August-29-2023"]
[Site "Chess.com"]
[Date "2023.08.29"]
[Round "3"]
[White "wqws"]
[Black "Haykoooo0o"]
[Result "1-0"]
[WhiteElo "2647"]
[BlackElo "2439"]
[TimeControl "180+1"]
[EndTime "8:28:31 PDT"]
[Termination "wqws won by resignation"]

1. e4 {[%clk 0:03:00.9]} 1... e6 {[%clk 0:02:53.7]} 2. d4 {[%clk 0:02:58.6]}
2... d5 {[%clk 0:02:54.4]} 3. Nc3 {[%clk 0:02:57]} 3... Bb4 {[%clk 0:02:53.2]}
4. e5 {[%clk 0:02:57.3]} 4... c5 {[%clk 0:02:50.9]} 5. a3 {[%clk 0:02:57.6]}
5... Bxc3+ {[%clk 0:02:49.7]} 6. bxc3 {[%clk 0:02:58.5]} 6... Qa5 {[%clk
0:02:47.9]} 7. Bd2 {[%clk 0:02:58]} 7... Qa4 {[%clk 0:02:47.4]} 8. Nf3 {[%clk
0:02:58.3]} 8... Ne7 {[%clk 0:02:35.6]} 9. Bd3 {[%clk 0:02:58.1]} 9... c4 {[%clk
0:02:33.5]} 10. Be2 {[%clk 0:02:58.1]} 10... Nd7 {[%clk 0:02:30.8]} 11. O-O
{[%clk 0:02:58.2]} 11... Nb6 {[%clk 0:02:30.8]} 12. Ng5 {[%clk 0:02:57.6]} 12...
h6 {[%clk 0:02:29.4]} 13. Nh3 {[%clk 0:02:57.8]} 13... Bd7 {[%clk 0:02:28.4]}
14. Nf4 {[%clk 0:02:58.2]} 14... g6 {[%clk 0:02:23.2]} 15. Qb1 {[%clk
0:02:57.1]} 15... O-O-O {[%clk 0:02:12.5]} 16. Rc1 {[%clk 0:02:48.4]} 16... Nc6
{[%clk 0:01:58.8]} 17. Bf3 {[%clk 0:02:39.1]} 17... Kb8 {[%clk 0:01:57.5]} 18.
Ne2 {[%clk 0:02:38.6]} 18... Rdf8 {[%clk 0:01:27.7]} 19. Qa2 {[%clk 0:02:38.3]}
19... f5 {[%clk 0:01:25.9]} 20. Rcb1 {[%clk 0:02:34.2]} 20... g5 {[%clk
0:01:22.5]} 21. Rb4 {[%clk 0:02:34.3]} 21... Nxb4 {[%clk 0:01:21.2]} 22. cxb4
{[%clk 0:02:35.2]} 22... Qc6 {[%clk 0:01:16.2]} 23. Nc3 {[%clk 0:02:34.9]} 23...
Na4 {[%clk 0:01:16.3]} 24. b5 {[%clk 0:02:30.3]} 24... Nxc3 {[%clk 0:01:13.9]}
25. bxc6 {[%clk 0:02:29.8]} 25... Nxa2 {[%clk 0:01:13.9]} 26. cxd7 {[%clk
0:02:30.2]} 26... c3 {[%clk 0:01:10.4]} 27. Be1 {[%clk 0:02:30]} 27... Rf7
{[%clk 0:01:01.8]} 28. Rxa2 {[%clk 0:02:29.8]} 28... Rxd7 {[%clk 0:01:02.3]} 29.
Bxc3 {[%clk 0:02:30]} 29... Rc8 {[%clk 0:00:59.1]} 30. Bb4 {[%clk 0:02:30.3]}
30... b6 {[%clk 0:00:56.8]} 31. Be2 {[%clk 0:02:25.9]} 31... Kb7 {[%clk
0:00:53.5]} 32. a4 {[%clk 0:02:22.8]} 32... a6 {[%clk 0:00:51.7]} 33. a5 {[%clk
0:02:22.6]} 33... b5 {[%clk 0:00:50.6]} 34. Bc5 {[%clk 0:02:22.8]} 34... Rxc5
{[%clk 0:00:48.8]} 35. dxc5 {[%clk 0:02:22.3]} 35... Rc7 {[%clk 0:00:49]} 36.
Bd3 {[%clk 0:02:18.6]} 36... Rxc5 {[%clk 0:00:48.9]} 37. g3 {[%clk 0:02:14]}
37... Kc6 {[%clk 0:00:40.5]} 38. f4 {[%clk 0:02:13.8]} 38... g4 {[%clk
0:00:37.5]} 39. Kf2 {[%clk 0:02:13.8]} 39... Rc3 {[%clk 0:00:35.1]} 40. Ke3
{[%clk 0:02:13.8]} 40... Kc5 {[%clk 0:00:34.3]} 41. Kd2 {[%clk 0:02:10.2]} 41...
d4 {[%clk 0:00:34.4]} 42. Ra1 {[%clk 0:02:06.3]} 42... Kd5 {[%clk 0:00:34.1]}
43. h3 {[%clk 0:02:06]} 43... h5 {[%clk 0:00:31.3]} 44. hxg4 {[%clk 0:02:05.9]}
44... hxg4 {[%clk 0:00:32.2]} 45. Rh1 {[%clk 0:02:04.2]} 45... Ra3 {[%clk
0:00:32]} 46. Rh8 {[%clk 0:02:04.8]} 46... Rxa5 {[%clk 0:00:32.4]} 47. Rd8+
{[%clk 0:02:05]} 47... Kc5 {[%clk 0:00:32.5]} 48. Rd6 {[%clk 0:02:05.9]} 48...
Ra1 {[%clk 0:00:31.3]} 49. Rxe6 {[%clk 0:02:06.8]} 49... Rg1 {[%clk 0:00:31.4]}
50. Bxf5 {[%clk 0:02:07.3]} 50... Rxg3 {[%clk 0:00:30.8]} 51. Rg6 {[%clk
0:02:07.9]} 51... Rg2+ {[%clk 0:00:28.8]} 52. Kc1 {[%clk 0:02:07.5]} 52... g3
{[%clk 0:00:29.7]} 53. e6 {[%clk 0:02:05.4]} 53... Kd6 {[%clk 0:00:29.8]} 54.
Bd3 {[%clk 0:01:54.5]} 54... Rf2 {[%clk 0:00:23.9]} 55. f5 {[%clk 0:01:50.1]}
55... g2 {[%clk 0:00:23.4]} 56. Kb2 {[%clk 0:01:50.5]} 56... b4 {[%clk
0:00:20.7]} 57. Be4 {[%clk 0:01:48.2]} 57... d3 {[%clk 0:00:13.5]} 58. Bxd3
{[%clk 0:01:40.1]} 58... a5 {[%clk 0:00:13.9]} 59. Be4 {[%clk 0:01:39.9]} 59...
a4 {[%clk 0:00:14.3]} 60. Rxg2 {[%clk 0:01:39.9]} 60... Rf4 {[%clk 0:00:13.7]}
61. Bd3 {[%clk 0:01:39.7]} 61... Rf3 {[%clk 0:00:12.9]} 62. Re2 {[%clk
0:01:39.7]} 62... Ke7 {[%clk 0:00:12.1]} 63. Re4 {[%clk 0:01:39.9]} 63... b3
{[%clk 0:00:12.2]} 64. Rxa4 {[%clk 0:01:39.5]} 64... bxc2 {[%clk 0:00:11.8]} 65.
Bxc2 {[%clk 0:01:40.4]} 1-0

[Event "Early-Titled-Tuesday-Blitz-August-29-2023"]
[Site "Chess.com"]
[Date "2023.08.29"]
[Round "3"]
[White "borocotoajua"]
[Black "ChesscularGodofchess"]
[Result "0-1"]
[WhiteElo "2343"]
[BlackElo "2195"]
[TimeControl "180+1"]
[EndTime "8:28:32 PDT"]
[Termination "ChesscularGodofchess won on time"]

1. d4 {[%clk 0:03:00.9]} 1... d5 {[%clk 0:02:58.7]} 2. Nf3 {[%clk 0:03:00.9]}
2... Nf6 {[%clk 0:02:59]} 3. c4 {[%clk 0:03:00.9]} 3... c6 {[%clk 0:02:58.7]} 4.
g3 {[%clk 0:03:00.9]} 4... g6 {[%clk 0:02:58.1]} 5. Bg2 {[%clk 0:03:00.7]} 5...
Bg7 {[%clk 0:02:58]} 6. Nc3 {[%clk 0:02:56.6]} 6... dxc4 {[%clk 0:02:58.1]} 7.
O-O {[%clk 0:02:55.9]} 7... O-O {[%clk 0:02:57.8]} 8. h3 {[%clk 0:02:54.4]} 8...
a5 {[%clk 0:02:51.3]} 9. e4 {[%clk 0:02:48.6]} 9... Na6 {[%clk 0:02:47.5]} 10.
Qe2 {[%clk 0:02:47.7]} 10... Be6 {[%clk 0:02:47.1]} 11. Ng5 {[%clk 0:02:32.9]}
11... Qc8 {[%clk 0:02:47.1]} 12. a3 {[%clk 0:02:20]} 12... Rd8 {[%clk
0:02:41.3]} 13. Rd1 {[%clk 0:02:17.8]} 13... b5 {[%clk 0:02:22.8]} 14. d5 {[%clk
0:01:59.5]} 14... cxd5 {[%clk 0:02:13.7]} 15. exd5 {[%clk 0:02:00.4]} 15... Bf5
{[%clk 0:01:58]} 16. Qxe7 {[%clk 0:01:44.6]} 16... Rd7 {[%clk 0:01:56.6]} 17.
Qe2 {[%clk 0:01:35.9]} 17... Bd3 {[%clk 0:01:55.6]} 18. Qf3 {[%clk 0:01:23.5]}
18... h6 {[%clk 0:01:51]} 19. Nge4 {[%clk 0:01:20.9]} 19... Nxe4 {[%clk
0:01:42.4]} 20. Nxe4 {[%clk 0:01:21.8]} 20... f5 {[%clk 0:01:10.4]} 21. Nc3
{[%clk 0:01:08.3]} 21... Nc5 {[%clk 0:00:52.6]} 22. d6 {[%clk 0:00:54.1]} 22...
Rb8 {[%clk 0:00:50.9]} 23. Qd5+ {[%clk 0:00:47.9]} 23... Kh7 {[%clk 0:00:48.4]}
24. Be3 {[%clk 0:00:35.4]} 24... Nb3 {[%clk 0:00:47.3]} 25. Nxb5 {[%clk
0:00:27.4]} 25... Nxa1 {[%clk 0:00:40]} 26. Rxa1 {[%clk 0:00:28.3]} 26... Rxb5
{[%clk 0:00:38.1]} 27. Qxb5 {[%clk 0:00:27.5]} 27... Rxd6 {[%clk 0:00:38.5]} 28.
Rd1 {[%clk 0:00:09.1]} 28... Qd8 {[%clk 0:00:27.9]} 29. h4 {[%clk 0:00:07.9]}
29... c3 {[%clk 0:00:24.3]} 30. Qb7 {[%clk 0:00:05.9]} 30... cxb2 {[%clk
0:00:19.6]} 0-1

[Event "Early-Titled-Tuesday-Blitz-August-29-2023"]
[Site "Chess.com"]
[Date "2023.08.29"]
[Round "3"]
[White "the_drake"]
[Black "Henryk_S"]
[Result "1-0"]
[WhiteElo "2408"]
[BlackElo "2117"]
[TimeControl "180+1"]
[EndTime "8:28:34 PDT"]
[Termination "the_drake won on time"]

1. e4 {[%clk 0:03:00.9]} 1... e6 {[%clk 0:02:59.9]} 2. d4 {[%clk 0:03:00.7]}
2... d5 {[%clk 0:03:00]} 3. e5 {[%clk 0:03:01.4]} 3... c5 {[%clk 0:03:00.1]} 4.
dxc5 {[%clk 0:03:02.3]} 4... Nc6 {[%clk 0:02:54.6]} 5. f4 {[%clk 0:03:02.2]}
5... Bxc5 {[%clk 0:02:51]} 6. Nf3 {[%clk 0:03:02.4]} 6... Qb6 {[%clk 0:02:44.8]}
7. Bd3 {[%clk 0:02:47.9]} 7... Bf2+ {[%clk 0:02:32.1]} 8. Kf1 {[%clk 0:02:47.9]}
8... Bc5 {[%clk 0:02:25]} 9. g3 {[%clk 0:02:46.9]} 9... f6 {[%clk 0:02:17.8]}
10. Kg2 {[%clk 0:02:43.8]} 10... Bd7 {[%clk 0:02:00.3]} 11. Nc3 {[%clk
0:02:40.9]} 11... Be7 {[%clk 0:01:53.5]} 12. Qe2 {[%clk 0:02:34.4]} 12... Nh6
{[%clk 0:01:44.3]} 13. f5 {[%clk 0:02:20.3]} 13... fxe5 {[%clk 0:01:12.2]} 14.
Bxh6 {[%clk 0:02:17.5]} 14... gxh6 {[%clk 0:01:09.9]} 15. Nxe5 {[%clk
0:02:12.3]} 15... Nxe5 {[%clk 0:01:04]} 16. Qxe5 {[%clk 0:02:13.2]} 16... O-O-O
{[%clk 0:00:57.7]} 17. f6 {[%clk 0:01:02.9]} 17... Bd6 {[%clk 0:00:52.7]} 18.
Qh5 {[%clk 0:00:59.4]} 18... Rdf8 {[%clk 0:00:29.3]} 19. Rhf1 {[%clk 0:00:59.5]}
19... Bc6 {[%clk 0:00:22.7]} 20. Qxh6 {[%clk 0:00:55.3]} 20... e5 {[%clk
0:00:21.1]} 21. Bf5+ {[%clk 0:00:47.9]} 21... Kb8 {[%clk 0:00:20]} 22. Be6
{[%clk 0:00:48.2]} 22... d4+ {[%clk 0:00:17.9]} 23. Nd5 {[%clk 0:00:46.9]} 23...
Qc5 {[%clk 0:00:14.2]} 24. c4 {[%clk 0:00:46.4]} 24... dxc3 {[%clk 0:00:13.4]}
25. Rad1 {[%clk 0:00:44.3]} 25... c2 {[%clk 0:00:10.9]} 26. Rd3 {[%clk
0:00:44.4]} 26... Bc7 {[%clk 0:00:01.9]} 27. Kh3 {[%clk 0:00:40.6]} 27... Rd8
{[%clk 0:00:01.3]} 28. b4 {[%clk 0:00:23]} 28... Qd6 {[%clk 0:00:01.3]} 29. Nxc7
{[%clk 0:00:14.5]} 1-0

[Event "Early-Titled-Tuesday-Blitz-August-29-2023"]
[Site "Chess.com"]
[Date "2023.08.29"]
[Round "3"]
[White "sorch29"]
[Black "PattyCastillo"]
[Result "1-0"]
[WhiteElo "2362"]
[BlackElo "1931"]
[TimeControl "180+1"]
[EndTime "8:28:34 PDT"]
[Termination "sorch29 won on time"]

1. d4 {[%clk 0:03:00.9]} 1... d5 {[%clk 0:02:57.4]} 2. c4 {[%clk 0:03:00.6]}
2... c6 {[%clk 0:02:55.1]} 3. cxd5 {[%clk 0:03:00.2]} 3... cxd5 {[%clk
0:02:51.2]} 4. Nc3 {[%clk 0:03:00.5]} 4... Nf6 {[%clk 0:02:49.2]} 5. Bf4 {[%clk
0:03:00]} 5... Nc6 {[%clk 0:02:46.8]} 6. e3 {[%clk 0:03:00.3]} 6... a6 {[%clk
0:02:43.3]} 7. Bd3 {[%clk 0:02:58.5]} 7... Bg4 {[%clk 0:02:41.9]} 8. Nge2 {[%clk
0:02:55.3]} 8... e6 {[%clk 0:02:41.5]} 9. a3 {[%clk 0:02:46.7]} 9... Bd6 {[%clk
0:02:41.8]} 10. Bg5 {[%clk 0:02:37.6]} 10... h6 {[%clk 0:02:39.7]} 11. Bh4
{[%clk 0:02:37.6]} 11... Qb6 {[%clk 0:02:03.7]} 12. b4 {[%clk 0:02:27.9]} 12...
Rc8 {[%clk 0:01:40.3]} 13. f3 {[%clk 0:02:25.8]} 13... g5 {[%clk 0:01:35]} 14.
Bg3 {[%clk 0:02:17.7]} 14... Bxg3+ {[%clk 0:01:33.9]} 15. hxg3 {[%clk
0:02:13.7]} 15... Bh5 {[%clk 0:01:30.9]} 16. Qc2 {[%clk 0:01:57]} 16... Ke7
{[%clk 0:01:15]} 17. g4 {[%clk 0:01:55.1]} 17... Bxg4 {[%clk 0:00:57.7]} 18.
fxg4 {[%clk 0:01:54.8]} 18... Nxg4 {[%clk 0:00:58.6]} 19. Kd2 {[%clk 0:01:37.5]}
19... h5 {[%clk 0:00:50.5]} 20. Rac1 {[%clk 0:01:23.4]} 20... h4 {[%clk
0:00:49.5]} 21. Na4 {[%clk 0:01:11.1]} 21... Qc7 {[%clk 0:00:21.9]} 22. Rcf1
{[%clk 0:00:57.1]} 22... Qd6 {[%clk 0:00:19.1]} 23. Qc5 {[%clk 0:00:56.1]} 23...
f5 {[%clk 0:00:10.9]} 24. Qxd6+ {[%clk 0:00:46.6]} 24... Kxd6 {[%clk 0:00:11]}
25. Nc5 {[%clk 0:00:47.5]} 25... Rc7 {[%clk 0:00:10.6]} 26. Ng1 {[%clk
0:00:42.7]} 26... Re7 {[%clk 0:00:05.4]} 27. Nf3 {[%clk 0:00:42.6]} 27... Rg8
{[%clk 0:00:04.9]} 28. Rb1 {[%clk 0:00:37.5]} 28... Nf6 {[%clk 0:00:03.5]} 29.
b5 {[%clk 0:00:36.3]} 29... axb5 {[%clk 0:00:03.8]} 30. Rxb5 {[%clk 0:00:36.4]}
30... g4 {[%clk 0:00:01.9]} 31. Nxh4 {[%clk 0:00:32.9]} 1-0

[Event "Early-Titled-Tuesday-Blitz-August-29-2023"]
[Site "Chess.com"]
[Date "2023.08.29"]
[Round "3"]
[White "MITerryble"]
[Black "krzyzan94"]
[Result "0-1"]
[WhiteElo "2939"]
[BlackElo "2761"]
[TimeControl "180+1"]
[EndTime "8:28:36 PDT"]
[Termination "krzyzan94 won by resignation"]

1. d4 {[%clk 0:02:50.5]} 1... Nf6 {[%clk 0:02:59.3]} 2. Nf3 {[%clk 0:02:51]}
2... d5 {[%clk 0:02:57.3]} 3. c4 {[%clk 0:02:51.3]} 3... e6 {[%clk 0:02:57.7]}
4. e3 {[%clk 0:02:50.9]} 4... c5 {[%clk 0:02:56.8]} 5. dxc5 {[%clk 0:02:50.7]}
5... Bxc5 {[%clk 0:02:56]} 6. a3 {[%clk 0:02:51.2]} 6... a5 {[%clk 0:02:51.7]}
7. Nc3 {[%clk 0:02:51]} 7... O-O {[%clk 0:02:50.6]} 8. Be2 {[%clk 0:02:51]} 8...
Nc6 {[%clk 0:02:50.6]} 9. O-O {[%clk 0:02:50.7]} 9... dxc4 {[%clk 0:02:41.5]}
10. Qc2 {[%clk 0:02:50.2]} 10... Qe7 {[%clk 0:02:40.6]} 11. Bxc4 {[%clk
0:02:48.9]} 11... h6 {[%clk 0:02:35.8]} 12. b3 {[%clk 0:02:47.7]} 12... e5
{[%clk 0:02:35.3]} 13. Bb2 {[%clk 0:02:29.3]} 13... e4 {[%clk 0:02:17.7]} 14.
Nd2 {[%clk 0:02:22.7]} 14... Bf5 {[%clk 0:02:17.7]} 15. Nd5 {[%clk 0:02:21.2]}
15... Nxd5 {[%clk 0:02:17.2]} 16. Bxd5 {[%clk 0:02:22.1]} 16... Rad8 {[%clk
0:01:45.6]} 17. Bxc6 {[%clk 0:02:19.5]} 17... bxc6 {[%clk 0:01:44.9]} 18. Qc3
{[%clk 0:02:16.5]} 18... f6 {[%clk 0:01:40.1]} 19. Qxa5 {[%clk 0:02:13.5]} 19...
Rd5 {[%clk 0:01:35.2]} 20. Qc3 {[%clk 0:02:09.2]} 20... Rfd8 {[%clk 0:01:23.1]}
21. Nc4 {[%clk 0:02:08.4]} 21... Rd3 {[%clk 0:01:20.7]} 22. Qc2 {[%clk 0:02:08]}
22... Ba7 {[%clk 0:01:16.1]} 23. Rac1 {[%clk 0:01:57]} 23... Bb8 {[%clk
0:01:11.7]} 24. b4 {[%clk 0:01:32.2]} 24... Kh7 {[%clk 0:00:56]} 25. Bd4 {[%clk
0:01:19.6]} 25... Qf7 {[%clk 0:00:46.9]} 26. f4 {[%clk 0:00:43]} 26... exf3
{[%clk 0:00:42.1]} 27. Rxf3 {[%clk 0:00:43.2]} 27... Be4 {[%clk 0:00:24.2]} 28.
Qe2 {[%clk 0:00:41.9]} 28... Qh5 {[%clk 0:00:20.7]} 29. h3 {[%clk 0:00:42]}
29... f5 {[%clk 0:00:15.9]} 30. Rcf1 {[%clk 0:00:18.5]} 30... Bxf3 {[%clk
0:00:13.9]} 31. Qxd3 {[%clk 0:00:15.2]} 31... Be2 {[%clk 0:00:13.1]} 32. Qxf5+
{[%clk 0:00:14.4]} 32... Qxf5 {[%clk 0:00:13.3]} 33. Rxf5 {[%clk 0:00:15.3]}
33... Bxc4 {[%clk 0:00:13.9]} 34. Rf7 {[%clk 0:00:16.2]} 34... Bxf7 {[%clk
0:00:14]} 0-1

[Event "Early-Titled-Tuesday-Blitz-August-29-2023"]
[Site "Chess.com"]
[Date "2023.08.29"]
[Round "3"]
[White "Arseniy_Nesterov"]
[Black "SRob2003"]
[Result "1/2-1/2"]
[WhiteElo "2861"]
[BlackElo "2628"]
[TimeControl "180+1"]
[EndTime "8:28:36 PDT"]
[Termination "Game drawn by agreement"]

1. d4 {[%clk 0:03:00.9]} 1... Nf6 {[%clk 0:03:00.2]} 2. c4 {[%clk 0:03:01]} 2...
e6 {[%clk 0:03:00.7]} 3. Nf3 {[%clk 0:03:00.8]} 3... d5 {[%clk 0:03:00.8]} 4. g3
{[%clk 0:03:01.1]} 4... Be7 {[%clk 0:02:58.2]} 5. Bg2 {[%clk 0:03:00.6]} 5...
O-O {[%clk 0:02:58.9]} 6. O-O {[%clk 0:03:00.7]} 6... dxc4 {[%clk 0:02:59.7]} 7.
Qc2 {[%clk 0:03:00.4]} 7... a6 {[%clk 0:03:00.2]} 8. a4 {[%clk 0:03:00.5]} 8...
Bd7 {[%clk 0:03:00.8]} 9. Qxc4 {[%clk 0:03:00.5]} 9... Bc6 {[%clk 0:03:01.5]}
10. Bf4 {[%clk 0:03:00.2]} 10... Bd6 {[%clk 0:03:01]} 11. Qc1 {[%clk 0:03:00.2]}
11... a5 {[%clk 0:02:57.3]} 12. Re1 {[%clk 0:03:00]} 12... Na6 {[%clk
0:02:51.6]} 13. Nc3 {[%clk 0:02:56.9]} 13... Nb4 {[%clk 0:02:45.5]} 14. Nb5
{[%clk 0:02:06]} 14... Bxf4 {[%clk 0:02:29.5]} 15. gxf4 {[%clk 0:02:06.9]} 15...
Bxf3 {[%clk 0:02:28.8]} 16. Bxf3 {[%clk 0:02:05.9]} 16... c6 {[%clk 0:02:29]}
17. Na3 {[%clk 0:02:02]} 17... Qxd4 {[%clk 0:02:28.7]} 18. Rd1 {[%clk
0:01:55.8]} 18... Qa7 {[%clk 0:02:22.3]} 19. Nc4 {[%clk 0:01:53.5]} 19... Rad8
{[%clk 0:02:15.4]} 20. Qc3 {[%clk 0:01:38.9]} 20... Qc5 {[%clk 0:01:54.6]} 21.
Ne5 {[%clk 0:01:20.1]} 21... Qxc3 {[%clk 0:01:51]} 22. bxc3 {[%clk 0:01:21]}
22... Nbd5 {[%clk 0:01:51.7]} 23. Rdb1 {[%clk 0:01:02.3]} 23... Rb8 {[%clk
0:01:44.5]} 24. Rb3 {[%clk 0:01:01]} 24... Nxf4 {[%clk 0:01:44.5]} 25. Rab1
{[%clk 0:01:00.3]} 25... N4d5 {[%clk 0:01:44.4]} 26. Nxc6 {[%clk 0:00:54.2]}
26... Rbc8 {[%clk 0:01:37.2]} 27. Nxa5 {[%clk 0:00:47.7]} 27... Ra8 {[%clk
0:00:52.9]} 28. Nxb7 {[%clk 0:00:44.7]} 28... Rxa4 {[%clk 0:00:53.5]} 29. Nd6
{[%clk 0:00:39.5]} 29... Ra6 {[%clk 0:00:52.9]} 30. Ne4 {[%clk 0:00:32.5]} 30...
Nxe4 {[%clk 0:00:31.8]} 31. Bxe4 {[%clk 0:00:33.4]} 31... Rc6 {[%clk 0:00:32.5]}
32. Rc1 {[%clk 0:00:32.3]} 32... Rfc8 {[%clk 0:00:30.8]} 33. c4 {[%clk
0:00:32.4]} 33... Kf8 {[%clk 0:00:29.1]} 34. Rd1 {[%clk 0:00:18.8]} 34... Rxc4
{[%clk 0:00:18.2]} 35. Bxd5 {[%clk 0:00:18.9]} 35... exd5 {[%clk 0:00:19.1]} 36.
Rxd5 {[%clk 0:00:18.5]} 36... Rg4+ {[%clk 0:00:18.8]} 37. Rg3 {[%clk 0:00:19]}
37... Rxg3+ {[%clk 0:00:19.1]} 38. hxg3 {[%clk 0:00:19.1]} 1/2-1/2

[Event "Early-Titled-Tuesday-Blitz-August-29-2023"]
[Site "Chess.com"]
[Date "2023.08.29"]
[Round "3"]
[White "Eternauta2400"]
[Black "Jospem"]
[Result "0-1"]
[WhiteElo "2801"]
[BlackElo "3053"]
[TimeControl "180+1"]
[EndTime "8:28:37 PDT"]
[Termination "Jospem won by resignation"]

1. c4 {[%clk 0:03:00.9]} 1... c5 {[%clk 0:02:59.2]} 2. Nf3 {[%clk 0:03:00.9]}
2... Nc6 {[%clk 0:03:00]} 3. d4 {[%clk 0:03:00.9]} 3... cxd4 {[%clk 0:02:58.6]}
4. Nxd4 {[%clk 0:03:01.8]} 4... Qb6 {[%clk 0:02:59.3]} 5. Nb3 {[%clk 0:02:59.1]}
5... Nf6 {[%clk 0:02:59.5]} 6. Nc3 {[%clk 0:02:57.3]} 6... e6 {[%clk 0:02:59.6]}
7. g3 {[%clk 0:02:57.2]} 7... Ne5 {[%clk 0:02:59.7]} 8. e4 {[%clk 0:02:56.8]}
8... Bb4 {[%clk 0:02:58.9]} 9. Qe2 {[%clk 0:02:56.2]} 9... d6 {[%clk 0:02:56]}
10. Bg2 {[%clk 0:02:54.8]} 10... Qc7 {[%clk 0:02:50.5]} 11. Nd2 {[%clk 0:02:40]}
11... Bd7 {[%clk 0:02:40.6]} 12. O-O {[%clk 0:02:35.7]} 12... Rc8 {[%clk
0:02:34]} 13. Nb5 {[%clk 0:02:24.8]} 13... Bxb5 {[%clk 0:02:33.5]} 14. cxb5
{[%clk 0:02:25.7]} 14... O-O {[%clk 0:02:34.2]} 15. a3 {[%clk 0:02:17.7]} 15...
Ba5 {[%clk 0:02:29]} 16. Nb3 {[%clk 0:02:14.2]} 16... Bb6 {[%clk 0:02:29.6]} 17.
a4 {[%clk 0:01:48.1]} 17... Qc2 {[%clk 0:02:12.4]} 18. Qxc2 {[%clk 0:01:46.3]}
18... Rxc2 {[%clk 0:02:13.3]} 19. a5 {[%clk 0:01:47.2]} 19... Bc5 {[%clk
0:02:13.4]} 20. Nxc5 {[%clk 0:01:38]} 20... dxc5 {[%clk 0:01:59.9]} 21. b3
{[%clk 0:01:22.1]} 21... Nd3 {[%clk 0:01:28.6]} 22. Ba3 {[%clk 0:01:10.8]} 22...
Ng4 {[%clk 0:01:04.5]} 23. e5 {[%clk 0:00:47.4]} 23... b6 {[%clk 0:00:52.5]} 24.
Be4 {[%clk 0:00:40.1]} 24... Rd2 {[%clk 0:00:49]} 25. Rfd1 {[%clk 0:00:19.8]}
25... Rxd1+ {[%clk 0:00:48.8]} 26. Rxd1 {[%clk 0:00:20.7]} 26... Ndxf2 {[%clk
0:00:48.7]} 27. Re1 {[%clk 0:00:19.8]} 27... Rd8 {[%clk 0:00:29.9]} 28. Bf3
{[%clk 0:00:16.9]} 28... Nd3 {[%clk 0:00:30.1]} 29. Rd1 {[%clk 0:00:14.7]} 29...
Ngxe5 {[%clk 0:00:30.3]} 30. Be2 {[%clk 0:00:14.8]} 30... Rd5 {[%clk 0:00:25.2]}
31. Bf1 {[%clk 0:00:05.9]} 31... Nf3+ {[%clk 0:00:20.7]} 32. Kg2 {[%clk
0:00:05.9]} 32... Nde1+ {[%clk 0:00:20.9]} 0-1

[Event "Early-Titled-Tuesday-Blitz-August-29-2023"]
[Site "Chess.com"]
[Date "2023.08.29"]
[Round "3"]
[White "ChessicallyInclined"]
[Black "GMBenjaminBok"]
[Result "0-1"]
[WhiteElo "2717"]
[BlackElo "2913"]
[TimeControl "180+1"]
[EndTime "8:28:37 PDT"]
[Termination "GMBenjaminBok won by resignation"]

1. e4 {[%clk 0:03:00.9]} 1... c5 {[%clk 0:02:59.3]} 2. Nf3 {[%clk 0:03:01]} 2...
d6 {[%clk 0:02:59.4]} 3. d4 {[%clk 0:03:01]} 3... cxd4 {[%clk 0:03:00.3]} 4.
Nxd4 {[%clk 0:03:01.8]} 4... Nf6 {[%clk 0:03:00.7]} 5. Nc3 {[%clk 0:03:02.4]}
5... a6 {[%clk 0:03:01.3]} 6. Be2 {[%clk 0:03:02.7]} 6... e5 {[%clk 0:03:00.8]}
7. Nb3 {[%clk 0:03:03.3]} 7... Be7 {[%clk 0:03:01.1]} 8. Be3 {[%clk 0:03:03.9]}
8... Be6 {[%clk 0:03:01.3]} 9. Nd5 {[%clk 0:03:03.9]} 9... Nbd7 {[%clk
0:03:00.1]} 10. Qd3 {[%clk 0:03:04.2]} 10... O-O {[%clk 0:02:59.4]} 11. O-O
{[%clk 0:02:59.4]} 11... Bxd5 {[%clk 0:02:59.4]} 12. exd5 {[%clk 0:02:59.4]}
12... Rc8 {[%clk 0:03:00.3]} 13. c4 {[%clk 0:02:57.9]} 13... a5 {[%clk
0:02:58.9]} 14. Kh1 {[%clk 0:02:53.9]} 14... g6 {[%clk 0:02:45.2]} 15. Rae1
{[%clk 0:02:50]} 15... Ne8 {[%clk 0:02:33.2]} 16. f4 {[%clk 0:02:45.4]} 16...
Ng7 {[%clk 0:02:28.7]} 17. fxe5 {[%clk 0:02:25.7]} 17... Nxe5 {[%clk 0:02:28.1]}
18. Qc3 {[%clk 0:02:21.7]} 18... Bf6 {[%clk 0:01:59.8]} 19. Nxa5 {[%clk
0:01:35.2]} 19... Nf3 {[%clk 0:01:36.1]} 20. Qb4 {[%clk 0:00:54.3]} 20... Nxe1
{[%clk 0:01:35.7]} 21. Rxe1 {[%clk 0:00:55.2]} 21... Re8 {[%clk 0:01:29.6]} 22.
Bf2 {[%clk 0:00:45.7]} 22... Qc7 {[%clk 0:01:21.8]} 23. Bf3 {[%clk 0:00:28.2]}
23... Rxe1+ {[%clk 0:01:21]} 24. Bxe1 {[%clk 0:00:25.5]} 24... Re8 {[%clk
0:01:12.5]} 25. Bf2 {[%clk 0:00:20.6]} 25... Ra8 {[%clk 0:01:07.1]} 26. Bb6
{[%clk 0:00:12.8]} 26... Qe7 {[%clk 0:01:07.6]} 27. g3 {[%clk 0:00:09.3]} 27...
Nf5 {[%clk 0:01:06.6]} 28. Bf2 {[%clk 0:00:07.3]} 28... Bd4 {[%clk 0:01:04.8]}
29. Be1 {[%clk 0:00:03.1]} 29... Qe3 {[%clk 0:00:58.2]} 30. Kg2 {[%clk
0:00:02.2]} 30... b6 {[%clk 0:00:46.6]} 31. Nb3 {[%clk 0:00:02.3]} 31... Rxa2
{[%clk 0:00:27.6]} 32. Nxd4 {[%clk 0:00:02.1]} 32... Qxd4 {[%clk 0:00:23.7]} 33.
Bc3 {[%clk 0:00:01.8]} 33... Qxc4 {[%clk 0:00:20.1]} 34. Qxc4 {[%clk 0:00:01.9]}
34... Ne3+ {[%clk 0:00:20.3]} 35. Kf2 {[%clk 0:00:02.2]} 35... Nxc4 {[%clk
0:00:21.2]} 0-1